Workbook

Sheet JAM
A1: COM | B1: 3
A2: 文字間 | B2: 2
A3: 行間 | B3: 50

Sheet BUG
A1: 110 | B1: =A1+1 -> 111 | C1: =B1+1 -> 112 | D1: =C1+1 -> 113 | E1: =D1+1 -> 114
A2: NEW | B2: NEW | C2: NEW | D2: NEW | E2: NEW
A3: 10 'INI | B3: 10 'SEL | C3: 10 'SCR | D3: 10 'DO | E3: 10 'SCOPY
A4: 20 CLS:CLP:CLV:UART0 | B4: 20 M=9:L=20:P=0:F=0 | C4: 20 FORD=0TO11:FORE=1TO9 | D4: 20 @F:V=#900+20*32:C=0:J=0 | E4: 20 LC0,-1:UART1:FORV=#900TO#BFF:FORW=0TO7:?PEEK(PEEK(V)*8+W):NEXT:NEXT:?"OK":UART0
A5: 30 POKE #700,0,41,158,111,97,111,158,41 | B5: 30 @F:CLS:LC0,0,1 | C5: 30 Z=(SCR(D*2,E*2)=ASC("~92")) | D5: 30 GSB@P | E5: ="30 LRUN"&$D$1 -> 30 LRUN113
A6: 40 POKE #708,148,121,246,134,246,121,148,0 | B6: 40 ?"ﾓﾝﾀﾞｲ" | C6: 40 Z=Z+2*(SCR(D*2,E*2+2)=ASC("~92")) | D6: 40 LC0,20:?CHR$(12);:INPUT ">",A | E6: ="SAVE"&E$1 -> SAVE114
A7: 50 POKE #710,68,56,186,68,238,108,108,186 | B7: 50 S=F/L*L:E=S+L-1:IFE>M E=M | C7: 50 Z=Z+4*(SCR(D*2-1,E*2+1)=ASC("~91")) | D7: 50 @LP:C=C+1
A8: 60 POKE #718,93,54,54,119,34,93,28,34 | B8: 60 P=F/L:LC0,2 | C8: 60 Z=Z+8*(SCR(D*2+1,E*2+1)=ASC("~91")) | D8: 60 R=PEEK(V+C)
A9: 70 LC0,0:?"~E2 BUG PROGRAMING ~E2" | B9: 70 FILES 100+S,100+E | C9: 70 LCD*2,E*2+1 | D9: 70 IFR=0LC0,22:GOTO@F
A10: 80 T=TICK():SRND(T) | B10: 80 @S:LC0,2+F%L,1 | C10: 80 IFZ=5?"~9B"; | D10: 80 IFR=ASC("N")LRUNF
A11: 90 POKE#780,255,255,255,255,255,255,255,255 | B11: 90 K=INKEY():IF!KCONT | C11: 90 IFZ=6?"~99"; | D11: 90 IFR=ASC("M")GOTO@M
A12: 100 FORY=1TO8:B=128:LC1,Y*2+2:?Y; | B12: 100 IF K=10 LRUN 100+F | C12: 100 IFZ=7?"~94"; | D12: 100 IFR=ASC("T")GOTO@T
A13: 110 D=PEEK(#780+Y-1) | B13: 110 IF K=30 F=F-1 | C13: 110 IFZ=9?"~9A"; | D13: ="110 IFR=ASC(" & """"&"X" & """"&")LRUN"&BUG!$E$1 -> 110 IFR=ASC("X")LRUN114
A14: 120 FORX=1TO8:LCX*2+1,2:?X; | B14: 120 IF K=31 F=F+1 | C14: 120 IFZ=10?"~98"; | D14: 120 IFR=ASC("Q")LC0,22:END
A15: 130 IFD&B=0GOTO@N | B15: 130 IF K=28 F=F/L*L-L | C15: 130 IFZ=11?"~95"; | D15: 130 GSB@C
A16: 140 LCX*2+1,Y*2+1:?"~91"; | B16: 140 IF K=29 F=F/L*L+L | C16: 140 IFZ=13?"~96"; | D16: 140 IFR=ASC("G")GSB@G
A17: 150 LCX*2,Y*2+2:?"~92 ~92"; | B17: 150 IF F<0 F=0 | C17: 150 IFZ=14?"~97"; | D17: 150 IFR=ASC("R")GSB@R
A18: 160 LCX*2+1,Y*2+3:?"~91"; | B18: 160 IF F>M F=M | C18: 160 IFZ=15?"~93"; | D18: 160 IFR=ASC("L")GSB@L
A19: 170 @N:B=B/2 | B19: 170 IF P<>F/L P=F/L:GOTO@F | C19: 170 NEXT:NEXT | D19: 170 IF(R>=ASC("0"))*(R<=ASC("9"))GSB@S
A20: 180 NEXT:NEXT | B20: 180 GOTO @S | C20: 180 LC23,2:?"~E2 G ｽｽﾑ" | D20: 180 IFR=ASC("]")GSB@B
A21: 190 X=RND(8)+1:Y=RND(8)+1:M=RND(4)+1 | B21: ="SAVE"&B$1 -> SAVE111 | C21: 190 LC23,4:?"~E0 L ﾋﾀﾞﾘ" | D21: 190 GSB@P:WAITW
A22: ="200 LRUN"&C1 -> 200 LRUN112 | C22: 200 LC23,6:?"~E1 R ﾐｷﾞ" | D22: 200 GOTO@LP
A23: ="SAVE"&A$1 -> SAVE110 | C23: 210 LC23,8:?"ｶｲ[ｸﾘｶｴｼ]" | D23: 210 @P:LCX*2+1,Y*2+2
C24: 230 LC23,12:?"N ﾔﾘﾅｵｼ" | D24: 220 IFM=1?"~E2";
C25: 240 LC23,14:?"M ﾓﾝﾀﾞｲ" | D25: 230 IFM=2?"~E1";
C26: 245 LC23,16:?"Q ｵﾜﾙ" | D26: 240 IFM=3?"~E3";
C27: ="250 LRUN"&D1 -> 250 LRUN113 | D27: 250 IFM=4?"~E0";
C28: ="SAVE"&C$1 -> SAVE112 | D28: 260 RTN
D29: 270 @C:LCX*2+1,Y*2+2:?"~90";:RTN
D30: 280 @G:BEEP 10
D31: 290 X=X+(M=2)-(M=4)
D32: 300 Y=Y+(M=3)-(M=1)
D33: 310 W=30:RTN
D34: 320 @R:BEEP 8
D35: 330 M=M+1:IFM=5M=1
D36: 340 W=30:RTN
D37: 350 @L:BEEP 8
D38: 360 M=M-1:IFM=0M=4
D39: 370 W=30:RTN
D40: 380 @S:J=R-ASC("0"):C=C+1
D41: 390 @N:R=PEEK(V+C)
D42: 400 IF(R>=ASC("0"))*(R<=ASC("9"))J=J*10+R-ASC("0"):C=C+1:GOTO@N
D43: 410 S=C:W=0:RTN
D44: 420 @B:J=J-1:IFJ>0C=S
D45: 430 W=0:RTN
D46: ="440 @M:T=TICK():SRND(T):LRUN"&B1 -> 440 @M:T=TICK():SRND(T):LRUN111
D47: 450 @T:LC0,20:?CHR$(12);"T=";T:INPUT "T=",T
D48: ="460 SRND(T):LRUN"&B1 -> 460 SRND(T):LRUN111
D49: ="SAVE"&D$1 -> SAVE113

Sheet TOOL
A1: 115 | B1: =A1+1 -> 116 | C1: =B1+1 -> 117 | D1: =C1+1 -> 118 | E1: =D1+1 -> 119
A2: NEW | B2: NEW | C2: NEW | D2: NEW | E2: NEW
A3: 10 'PCG HELP | B3: 10 'CHR | C3: 10 'PCG EDIT | D3: 10 'PCG #E2 | E3: 100 'PCG POKE
A4: 20 CLS | B4: 20 CLS:?"\ 0123456789ABCDEF":?" ~98";:FORI=0TO15:?"~91";:NEXT:? | C4: 20 CLS | D4: 20 CLS | E4: 110 CLS:?" 0 1 2 3 4 5 6 7":?
A5: 30 ?" ~FFIchigoJam PCG":? | B5: 30 FORH=0TO15:?HEX$(H);"~92" | C5: 30 ?"PCG EDIT":? | D5: 30 ?:?"0 1 2 3" | E5: 120 FORJ=0TO3:?"#";HEX$(#E0+J*8);" ";:FORI=0TO7:?CHR$(#E0+J*8+I,0);:NEXT:?:?:NEXT:?
A6: 40 ?" 0123456789ABCDEF" | B6: 40 FORL=0TO15:POKE#900+64+2+H*32+L,H*16+L:NEXT | C6: 40 ?:?"0 1 2 3 4 5 6 7 8 9 A B C D E F" | D6: 40 ?:?"~E0 ~E1 ~E2 ~E3" | E6: 130 '-----
A7: 50 ?" ~98~91~91~91~91~91~91~91~91~91~91~91~91~91~91~91~91" | B7: 50 NEXT | C7: 50 ?:?"~E0 ~E1 ~E2 ~E3 ~E4 ~E5 ~E6 ~E7 ~E8 ~E9 ~EA ~EB ~EC ~ED ~EE ~EF" | D7: 50 '---------- | E7: 140 INPUT "S=",S:INPUT "E=",E
A8: 60 ?"Alt ~92~E0~E1~E2~E3~E4~E5~E6~E7~E8~E9~EA~EB~EC~ED~EE~EF #E0-#EF" | B8: 55 @LP | C8: 60 ?:?"~F0 ~F1 ~F2 ~F3 ~F4 ~F5 ~F6 ~F7 ~F8 ~F9 ~FA ~FB ~FC ~FD ~FE ~FF" | D8: 60 A=#710:B=#708:GSB@R | E8: 150 CLS:FORC=STOE:A=#700+(C-#E0)*8
A9: 70 ?"+Shift~92 ~81~82~83~84~85~86~87~88~89~8A~8B~8C~8D~8E~8F #80-#8F" | B9: 60 LC0,19:?CHR$(12);:INPUT "COPY:",A:IFA=0END | C9: 70 ?:INPUT"EDIT:",E | D9: 70 A=B:B=#718:GSB@R | E9: 160 ?500+C;" POKE #";HEX$(A);
A10: 80 ? | B10: 70 LC0,20:?CHR$(12);:INPUT "TO :",B | C10: 80 CLS | D10: 80 A=B:B=#700:GSB@R | E10: 170 FOR I=A TO A+7:?",";PEEK(I);:NEXT:?:NEXT
A11: 90 ?" GHIJKLMNOPQRSTUV" | B11: 80 COPY B*8,A*8,8 | C11: 90 FOR Y=0TO7 | D11: 90 END | E11: ="SAVE"&E$1 -> SAVE119
A12: 100 ?" ~98~91~91~91~91~91~91~91~91~91~91~91~91~91~91~91~91" | B12: 90 GOTO@LP | C12: 100 B=128 | D12: 100 '-------
A13: 110 ?"Alt ~92~F0~F1~F2~F3~F4~F5~F6~F7~F8~F9~FA~FB~FC~FD~FE~FF #F0-#FF" | B13: ="SAVE"&B$1 -> SAVE116 | C13: 110 D=PEEK(E*8+Y) | D13: 110 @R:E=1:FOR I=0 TO 7
A14: 120 ?"+Shift~92~90~91~92~93~94~95~96~97~98~99~9A~9B~9C~9D~9E~9F #90-#9F" | C14: 120 FOR X=0TO7 | D14: 120 F=1:D=0:FOR J=0 TO 7
A15: 130 LC0,14:?CHR$(24);:INPUT"TEST:",C:CONT | C15: 130 LCX+5,Y+5:IFD&B=0?"･";:ELSE?CHR$(2); | D15: 130 G=PEEK(A+J):D=D+(G&E>0)*F:F=F*2
A16: ="SAVE"&A$1 -> SAVE115 | C16: 140 B=B/2:NEXT | D16: 140 NEXT
C17: 150 NEXT | D17: 150 POKE B+7-I,D:E=E*2
C18: 160 X=0:Y=0:LCX+5,Y+5,1 | D18: 160 NEXT
C19: 170 @K:K=INKEY() | D19: 170 RTN
C20: 180 IFK=0GOTO@K | D20: ="SAVE"&D$1 -> SAVE118
C21: 190 IFK=10GOTO@P
C22: 200 IFK=28X=X-1
C23: 210 IFK=29X=X+1
C24: 220 IFK=30Y=Y-1
C25: 230 IFK=31Y=Y+1
C26: 240 IFK=32IFSCR()=ASC("･")?CHR$(2);:ELSE?"･";
C27: 250 LCX+5,Y+5,1:BEEP
C28: 260 GOTO @K
C29: 270 @P
C30: 280 LC0,15:?" POKE#";HEX$(E*8);
C31: 290 FOR Y=0TO7
C32: 300 B=128:D=0
C33: 310 FOR X=0TO7
C34: 320 IFSCR(X+5,Y+5)=2D=D+B
C35: 330 B=B/2:NEXT
C36: 340 POKEE*8+Y,D
C37: 350 ?",";D;
C38: 360 NEXT
C39: 370 ?:END
C40: ="SAVE"&C$1 -> SAVE117

Sheet MONDAI
A1: 100 | B1: =A1+1 -> 101 | C1: =B1+1 -> 102 | D1: =C1+1 -> 103 | E1: =D1+1 -> 104 | F1: 105
A2: NEW | B2: NEW | C2: NEW | D2: NEW | E2: NEW | F2: NEW
A3: 10 '~FFｦﾄﾛｳ | B3: 10 'ﾏｽｾﾞﾝﾌﾞﾄｵﾙ | C3: 10 'ｼﾞｭﾝﾊﾞﾝﾆﾄﾙ | D3: 10 'ﾒｲﾛ | E3: 10 'MAZE | F3: 10 'ﾋﾄﾌﾃﾞｶﾞｷ
A4: 20 CLS:?"~F4ｦｻｹﾃ､~FFｦﾄﾛｳ" | B4: 20 CLS:?"~F0ｾﾞﾝﾌﾞﾄｵﾙ" | C4: 20 CLS:?"~F0ｼﾞｭﾝﾊﾞﾝ" | D4: 20 CLS:?"~F0ﾒｲﾛ" | E4: 20 CLS:SRND(T) | F4: 20 CLS:?"~F0ﾋﾄﾌﾃﾞｶﾞｷ"
A5: 30 POKE#780,255,255,255,255,255,255,255,255 | B5: 30 POKE#780,60,60,255,255,255,255,60,60 | C5: 30 POKE#780,60,60,255,255,255,255,60,60 | D5: 30 POKE#780,253,65,223,145,215,85,244,167 | E5: 30 FORX=0TO12:FORY=0TO8 | F5: 30 POKE#780,0,44,60,36,44,44,60,0,3,2,3
A6: 40 SRND(T) | B6: =A6 -> 40 SRND(T) | C6: 40 SRND(T) | D6: 40 SRND(T) | E6: 40 LCX,Y:?"O"; | F6: 40 FORY=1TO8:B=128:LC1,Y*2+2:?Y;
A7: 50 FORY=1TO8:B=128:LC1,Y*2+2:?Y; | B7: =A7 -> 50 FORY=1TO8:B=128:LC1,Y*2+2:?Y; | C7: =B7 -> 50 FORY=1TO8:B=128:LC1,Y*2+2:?Y; | D7: =C7 -> 50 FORY=1TO8:B=128:LC1,Y*2+2:?Y; | E7: 50 NEXT:NEXT | F7: 50 D=PEEK(#780+Y-1)
A8: 60 D=PEEK(#780+Y-1) | B8: 60 D=PEEK(#780+Y-1) | C8: 60 D=PEEK(#780+Y-1) | D8: 60 D=PEEK(#780+Y-1) | E8: 60 @R | F8: 60 FORX=1TO8:LCX*2+1,2:?X;
A9: 70 FORX=1TO8:LCX*2+1,2:?X; | B9: 70 FORX=1TO8:LCX*2+1,2:?X; | C9: 70 FORX=1TO8:LCX*2+1,2:?X; | D9: 70 FORX=1TO8:LCX*2+1,2:?X; | E9: 70 X=RND(6)*2+1 | F9: 70 IFD&B=0GOTO@N
A10: 80 IFD&B=0GOTO@N | B10: 80 IFD&B=0GOTO@N | C10: 80 IFD&B=0GOTO@N | D10: 80 IFD&B=0GOTO@N | E10: 80 Y=RND(4)*2+1 | F10: 80 LCX*2+1,Y*2+1:?"~91";
A11: 90 LCX*2+1,Y*2+1:?"~91"; | B11: 90 LCX*2+1,Y*2+1:?"~91"; | C11: 90 LCX*2+1,Y*2+1:?"~91"; | D11: 90 LCX*2+1,Y*2+1:?"~91"; | E11: 90 LCX,Y:?CHR$(0); | F11: 90 LCX*2,Y*2+2:?"~92 ~92";
A12: 100 LCX*2,Y*2+2:?"~92 ~92"; | B12: 100 LCX*2,Y*2+2:?"~92 ~92"; | C12: 100 LCX*2,Y*2+2:?"~92 ~92"; | D12: 100 LCX*2,Y*2+2:?"~92 ~92"; | E12: 100 @F:F=0 | F12: 100 LCX*2+1,Y*2+3:?"~91";
A13: 110 LCX*2+1,Y*2+3:?"~91"; | B13: 110 LCX*2+1,Y*2+3:?"~91"; | C13: 110 LCX*2+1,Y*2+3:?"~91"; | D13: 110 LCX*2+1,Y*2+3:?"~91"; | E13: 110 @L:IFF=15GOTO@N | F13: 110 @N:B=B/2
A14: 120 @N:B=B/2 | B14: 120 @N:B=B/2 | C14: 120 @N:B=B/2 | D14: 120 @N:B=B/2 | E14: 120 M=RND(4) | F14: 120 NEXT:NEXT
A15: 130 NEXT:NEXT | B15: 130 NEXT:NEXT | C15: 130 NEXT:NEXT | D15: 130 NEXT:NEXT | E15: 130 IFM=0D=0:E=1:F=F|1 | F15: 130 X=PEEK(#788)
A16: 140 FORI=1 TO 8 | B16: 140 @R:X=RND(8)+1:Y=RND(8)+1 | C16: 140 FORI=1TO5 | D16: 140 @G:X=RND(8)+1:Y=RND(8)+1 | E16: 140 IFM=1D=0:E=-1:F=F|2 | F16: 140 Y=PEEK(#789)
A17: 150 LCRND(8)*2+3,RND(8)*2+4 | B17: 150 IFSCR(X*2+1,Y*2+2)=0GOTO@R | C17: 150 @P:X=RND(8)+1:Y=RND(8)+1 | D17: 150 IFSCR(X*2+1,Y*2+2)<>ASC(" ")GOTO@G | E17: 150 IFM=2D=1:E=0:F=F|4 | F17: 150 M=PEEK(#78A)
A18: 160 ?"~F4"; | B18: 160 M=RND(4)+1:F=FILE() | C18: 160 IFSCR(X*2+1,Y*2+2)<>ASC(" ")GOTO@P | D18: 160 LCX*2+1,Y*2+2:?"~FF"; | E18: 160 IFM=3D=-1:E=0:F=F|8 | F18: 160 F=FILE()
A19: 170 NEXT | B19: 170 LRUN112 | C19: 170 LCX*2+1,Y*2+2:?I; | D19: 170 @R:X=RND(8)+1:Y=RND(8)+1 | E19: 170 IFSCR(X+D*2,Y+E*2)=0GOTO@L | F19: 170 LRUN112
A20: 180 LC17,18:?"~FF"; | B20: ="SAVE"&B$1 -> SAVE101 | C20: 180 NEXT | D20: 180 IFSCR(X*2+1,Y*2+2)<>ASC(" ")GOTO@R | E20: 180 LCX+D,Y+E:?CHR$(0); | F20: ="SAVE"&F$1 -> SAVE105
A21: 190 X=1:Y=1:M=2:F=FILE() | C21: 190 @R:X=RND(8)+1:Y=RND(8)+1 | D21: 190 M=RND(4)+1:F=FILE() | E21: 190 LCX+D*2,Y+E*2:?CHR$(0);
A22: 200 LRUN112 | C22: 200 IFSCR(X*2+1,Y*2+2)<>ASC(" ")GOTO@R | D22: 200 LRUN112 | E22: 200 X=X+D*2:Y=Y+E*2:GOTO@F
A23: ="SAVE"&A$1 -> SAVE100 | C23: 210 M=RND(4)+1:F=FILE() | D23: ="SAVE"&D$1 -> SAVE103 | E23: 210 @N:C=0:FORX=1TO11STEP2:FORY=1TO5STEP2
C24: 220 LRUN112 | E24: 220 IFSCR(X,Y)<>0C=C+1
C25: ="SAVE"&C$1 -> SAVE102 | E25: 230 NEXT:NEXT
E26: 240 IFC=0GOTO@Q
E27: 250 @X
E28: 260 X=RND(5)*2+1
E29: 270 Y=RND(4)*2+1
E30: 280 IFSCR(X,Y)=0GOTO@F
E31: 290 GOTO@X
E32: 300 @Q
E33: 310 FORX=1TO11:FORY=1TO8
E34: 320 D=0:IFSCR(X,Y)=ASC("O")THEND=1
E35: 330 POKE#800+Y*12+X,D
E36: 340 NEXT:NEXT
E37: 350 CLS:?"ﾒｲﾛ"
E38: 360 FORX=1TO11:FORY=1TO8
E39: 370 IFPEEK(#800+Y*12+X)=1GOTO@K
E40: 380 LCX*2-1,Y*2+1:?"~91";
E41: 390 LCX*2-2,Y*2+2:?"~92 ~92";
E42: 400 LCX*2-1,Y*2+3:?"~91";
E43: 410 @K:NEXT:NEXT
E44: 420 FORI=0TO4
E45: 430 @I:X=RND(9)+1:Y=RND(7)+1
E46: 440 IFSCR(X*2+1,Y*2+2)<>ASC(" ")GOTO@I
E47: 450 LCX*2+1,Y*2+2:?"~FF";
E48: 460 NEXT
E49: 470 @G:X=RND(9)+1:Y=RND(7)+1
E50: 480 IFSCR(X*2+1,Y*2+2)<>ASC(" ")GOTO@G
E51: 490 M=RND(4)+1:F=FILE()
E52: ="500 LRUN"&BUG!$C$1 -> 500 LRUN112
E53: ="SAVE"&E$1 -> SAVE104
